[Event "Polish Youth G16 Championship 2023"]
[Site "Jastrzebia Gora"]
[Date "2023.03.15"]
[Round "5.17"]
[White "Biniak, Zuzanna"]
[Black "Niedorys, Karolina"]
[Result "1-0"]
[ECO "B50"]
[WhiteElo "1457"]
[BlackElo "1458"]
[Annotator "NA RC COMBH"]
[PlyCount "89"]
[EventDate "2023.03.11"]
[EventType "swiss"]
[EventCountry "POL"]
[SourceTitle "playchess.com"]
[Source "ChessBase"]
[SourceQuality "1"]
[TimeControl "40/5400+30:1800+30"]

1. e4 c5 2. Nf3 d6 3. d3 Nc6 4. g3 g6 5. Bg2 Bg7 6. c3 e5 7. a3 Nge7 8. O-O O-O 9. Ne1 Be6 10. Nd2 f5 11. f4 b5 12. Nc2 Qd7 13. Nf3 Rab8 14. Ng5 a5 15. Nxe6 Qxe6 16. Be3 b4 17. axb4 axb4 18. exf5 gxf5 19. fxe5 b3 20. Na3 Nxe5 21. Re1 Qg6 22. Bf4 N5c6 23. Nc4 Rf6 24. Ra3 Bh6 25. Bxh6 Qxh6 26. Rxb3 Rbf8 27. Ne3 Kh8 28. d4 c4 29. Rb6 d5 30. Nxd5 Nxd5 31. Bxd5 f4 32. Rxc6 fxg3 33. hxg3 Rxc6 34. Bxc6 Qxc6 35. Rf1 Rxf1+ 36. Qxf1 Qh6 37. Qf4 Qxf4 38. gxf4 Kg7 39. Kg2 Kf6 40. Kg3 h5 41. Kh4 Kf5 42. Kxh5 Kxf4 43. Kg6 Ke4 44. Kf6 Kd5 45. Kf5 1-0

[Event "Polish Youth G16 Championship 2023"]
[Site "Jastrzebia Gora"]
[Date "2023.03.15"]
[Round "5.18"]
[White "Makarec, Anna"]
[Black "Gajec, Roza"]
[Result "1-0"]
[ECO "B24"]
[WhiteElo "1271"]
[BlackElo "1341"]
[Annotator "NA COMBH RC"]
[PlyCount "111"]
[EventDate "2023.03.11"]
[EventType "swiss"]
[EventCountry "POL"]
[SourceTitle "playchess.com"]
[Source "ChessBase"]
[SourceQuality "1"]
[TimeControl "40/5400+30:1800+30"]

1. e4 c5 2. Nc3 Nc6 3. g3 g6 4. Bg2 Bg7 5. Nge2 e6 6. d3 Nge7 7. O-O O-O 8. Bg5 d6 9. Qd2 Nd4 10. Nxd4 cxd4 11. Ne2 Re8 12. Bh6 Bh8 13. f4 Rb8 14. g4 f5 15. gxf5 exf5 16. Rae1 b5 17. Ng3 Bg7 18. Bxg7 Kxg7 19. Qf2 Qb6 20. Ne2 Nc6 21. exf5 Bxf5 22. Bxc6 Qxc6 23. Nxd4 Qd7 24. Nxf5+ gxf5 25. Qd4+ Kf7 26. Qd5+ Kf6 27. Rxe8 Rxe8 28. Rf3 Re1+ 29. Kf2 Qe7 30. Qd4+ Kf7 31. Kg3 Kg6 32. Qd5 Rg1+ 33. Kh3 Rg4 34. Rg3 h5 35. Qf3 Kh6 36. Kg2 Rh4 37. Qf2 Qb7+ 38. Kg1 Qa6 39. Qd4 Qb6 40. Qxb6 axb6 41. Rf3 Rg4+ 42. Kf2 Rg7 43. Rg3 Rc7 44. c3 b4 45. d4 Ra7 46. cxb4 Rxa2 47. Rb3 h4 48. Ke2 d5 49. Kd3 Ra4 50. Rc3 Rxb4 51. Rc6+ Kh5 52. Kc3 Rb5 53. h3 Ra5 54. Rxb6 Ra3+ 55. Rb3 Ra1 {Check Result:0.17} 56. Rb8 1-0

[Event "Polish Youth G16 Championship 2023"]
[Site "Jastrzebia Gora"]
[Date "2023.03.15"]
[Round "5.19"]
[White "Kaczmarek, Paulina"]
[Black "Predkiewicz, Paulina"]
[Result "1/2-1/2"]
[ECO "C58"]
[WhiteElo "1317"]
[BlackElo "1402"]
[Annotator "NA RC COMBH"]
[PlyCount "80"]
[EventDate "2023.03.11"]
[EventType "swiss"]
[EventCountry "POL"]
[SourceTitle "playchess.com"]
[Source "ChessBase"]
[SourceQuality "1"]
[TimeControl "40/5400+30:1800+30"]

1. e4 e5 2. Nf3 Nc6 3. Bc4 Nf6 4. Ng5 d5 5. exd5 Na5 6. d3 Nxc4 7. dxc4 Bc5 8. Nc3 Bf5 9. Qe2 O-O 10. Nge4 Nxe4 11. Nxe4 Bxe4 12. Qxe4 f5 13. Qe2 Qf6 14. Be3 Bxe3 15. Qxe3 Qa6 16. Qb3 Rae8 17. O-O-O Kh8 18. Kb1 e4 19. Rhe1 Qf6 20. c5 Rd8 21. Qb4 b6 22. cxb6 axb6 23. Qc4 Rf7 24. f3 exf3 25. gxf3 Rfd7 26. Qe2 h6 27. Qe5 Qf7 28. c4 Qf8 29. Kc2 Qb4 30. Qc3 Qd6 31. Rd2 Qf4 32. Rde2 Kh7 33. Qd3 Rf7 34. Rd2 Rfd7 35. Qe2 c6 36. Red1 cxd5 37. Rxd5 Rxd5 38. Rxd5 Rxd5 39. cxd5 Qa4+ 40. Kb1 Qd4 1/2-1/2

[Event "Polish Youth G16 Championship 2023"]
[Site "Jastrzebia Gora"]
[Date "2023.03.15"]
[Round "5.20"]
[White "Sliwicka, Weronika"]
[Black "Racis, Dominika"]
[Result "1-0"]
[ECO "B12"]
[WhiteElo "1374"]
[BlackElo "1201"]
[Annotator "NA RC COMBH"]
[PlyCount "75"]
[EventDate "2023.03.11"]
[EventType "swiss"]
[EventCountry "POL"]
[SourceTitle "playchess.com"]
[Source "ChessBase"]
[SourceQuality "1"]
[TimeControl "40/5400+30:1800+30"]

1. e4 {[%emt 0:00:02]} c6 {[%emt 0:00:10]} 2. d4 {[%emt 0:00:04]} d5 {[%emt 0:00:06]} 3. e5 {[%emt 0:00:03]} Bf5 {[%emt 0:00:56]} 4. c4 {[%emt 0:00:53]} dxc4 {[%emt 0:01:00]} 5. Bxc4 {[%emt 0:00:10]} e6 {[%emt 0:00:49]} 6. Nc3 {[%emt 0:01:13]} Bb4 {[%emt 0:02:17]} 7. Nge2 {[%emt 0:00:45]} Nd7 {[%emt 0:03:40]} 8. a3 {[%emt 0:04:57]} Bxc3+ {[%emt 0:00:26]} 9. Nxc3 {[%emt 0:00:18]} Nb6 {[%emt 0:01:02]} 10. Bb3 {[%emt 0:00:30]} Qc7 {[%emt 0:03:56]} 11. h4 {[%emt 0:05:19]} h5 {[%emt 0:05:43]} 12. Bf4 {[%emt 0:03:26]} Ne7 {[%emt 0:01:53]} 13. Rc1 {[%emt 0:01:25]} Nbd5 {[%emt 0:07:58]} 14. Bxd5 {[%emt 0:02:33]} Nxd5 15. Nxd5 {[%emt 0:00:20]} exd5 {[%emt 0:00:36]} 16. O-O Bg6 {[%emt 0:08:11]} 17. Qb3 {[%emt 0:03:50]} Qd7 {[%emt 0:03:41]} 18. Qb4 {[%emt 0:04:33]} O-O-O {[%emt 0:26:41]} 19. Qc5 {[%emt 0:00:50]} Qe6 {[%emt 0:13:25]} 20. Qxa7 Bd3 21. Rfe1 {[%emt 0:04:17]} Kc7 {[%emt 0:06:29]} 22. Qa5+ {[%emt 0:02:43]} Kb8 {[%emt 0:04:10]} 23. Qd2 {[%emt 0:02:58]} Ba6 {[%emt 0:01:08]} 24. Bg3 {[%emt 0:00:41]} Ka8 {[%emt 0:01:43]} 25. Qg5 {[%emt 0:00:17]} Rdg8 {[%emt 0:01:23]} 26. b4 {[%emt 0:01:03]} Rh6 {[%emt 0:01:19]} 27. a4 {[%emt 0:07:03]} Bc4 {[%emt 0:00:30]} 28. Ra1 {[%emt 0:00:41]} Rg6 {[%emt 0:00:25]} 29. Qxh5 Rg4 {[%emt 0:01:26]} 30. Qh7 {[%emt 0:02:17]} Qc8 {[%emt 0:01:14]} 31. Qh5 {[%emt 0:02:19]} g6 {[%emt 0:02:03]} 32. Qh7 {[%emt 0:01:02]} Qf8 {[%emt 0:00:25]} 33. e6 {[%emt 0:00:49]} Rg7 {[%emt 0:00:41]} 34. e7 {[%emt 0:01:41]} Qxe7 {[%emt 0:00:11]} 35. Qxg7 {[%emt 0:00:05]} Qd8 {[%emt 0:00:53]} 36. Qxf7 {[%emt 0:00:21]} Ka7 {[%emt 0:00:27]} 37. Re8 {[%emt 0:00:38]} Qb6 {[%emt 0:00:09]} 38. Bb8+ {[%emt 0:00:40]} 1-0

[Event "Polish Youth G16 Championship 2023"]
[Site "Jastrzebia Gora"]
[Date "2023.03.15"]
[Round "5.21"]
[White "Ekner, Maria"]
[Black "Domeradzka, Karolina"]
[Result "0-1"]
[ECO "E21"]
[WhiteElo "1337"]
[BlackElo "1194"]
[Annotator "NA RC COMBH"]
[PlyCount "50"]
[EventDate "2023.03.11"]
[EventType "swiss"]
[EventCountry "POL"]
[SourceTitle "playchess.com"]
[Source "ChessBase"]
[SourceQuality "1"]
[TimeControl "40/5400+30:1800+30"]

1. d4 {[%emt 0:00:01]} Nf6 {[%emt 0:00:02]} 2. c4 {[%emt 0:00:17]} e6 {[%emt 0:00:02]} 3. Nc3 {[%emt 0:00:21]} Bb4 {[%emt 0:00:03]} 4. Nf3 {[%emt 0:00:52]} b6 {[%emt 0:00:03]} 5. Bg5 {[%emt 0:01:07]} Bb7 {[%emt 0:00:16]} 6. e3 {[%emt 0:00:59]} O-O {[%emt 0:00:14]} 7. Bd3 {[%emt 0:00:35]} d5 {[%emt 0:00:16]} 8. O-O {[%emt 0:00:35]} Nbd7 {[%emt 0:05:24]} 9. Ne5 {[%emt 0:01:31]} Be7 {[%emt 0:03:53]} 10. f4 {[%emt 0:06:51]} c5 {[%emt 0:11:28]} 11. cxd5 {[%emt 0:06:25]} exd5 {[%emt 0:17:23]} 12. Qf3 {[%emt 0:04:17]} cxd4 {[%emt 0:14:45]} 13. Qh3 {[%emt 0:07:13]} Nxe5 {[%emt 0:15:51]} 14. fxe5 {[%emt 0:01:43]} Ne4 {[%emt 0:00:23]} 15. Bxe7 {[%emt 0:01:56]} Qxe7 {[%emt 0:02:57]} 16. exd4 {[%emt 0:00:11]} Qb4 {[%emt 0:03:40]} 17. Qd7 {[%emt 0:02:51]} Qxd4+ {[%emt 0:01:06]} 18. Kh1 {[%emt 0:00:52]} Qxd3 {[%emt 0:03:13]} 19. Qxb7 {[%emt 0:00:49]} Nxc3 {[%emt 0:04:43]} 20. bxc3 {[%emt 0:00:12]} Qxc3 {[%emt 0:01:56]} 21. Qxd5 {[%emt 0:00:10]} Rad8 {[%emt 0:00:42]} 22. Qb7 {[%emt 0:04:30]} Qxe5 {[%emt 0:00:30]} 23. Qxa7 {[%emt 0:00:06]} Rd6 {[%emt 0:01:13]} 24. Rae1 {[%emt 0:02:31]} Qd5 {[%emt 0:01:07]} 25. Rd1 {[%emt 0:03:09]} Qxd1 {[%emt 0:01:33]} 0-1

[Event "Polish Youth G16 Championship 2023"]
[Site "Jastrzebia Gora"]
[Date "2023.03.15"]
[Round "5.22"]
[White "Danek, Wiktoria"]
[Black "Butkiewicz, Hanna"]
[Result "0-1"]
[ECO "C50"]
[WhiteElo "1161"]
[BlackElo "1120"]
[Annotator "NA RC COMBH"]
[PlyCount "119"]
[EventDate "2023.03.11"]
[EventType "swiss"]
[EventCountry "POL"]
[SourceTitle "playchess.com"]
[Source "ChessBase"]
[SourceQuality "1"]
[TimeControl "40/5400+30:1800+30"]

1. e4 {[%emt 0:00:03]} e5 {[%emt 0:00:06]} 2. Nf3 {[%emt 0:00:13]} Nc6 {[%emt 0:00:08]} 3. Bc4 {[%emt 0:00:22]} Bc5 {[%emt 0:00:16]} 4. d3 {[%emt 0:00:27]} h6 {[%emt 0:00:08]} 5. c3 {[%emt 0:01:40]} Nf6 {[%emt 0:00:08]} 6. h3 {[%emt 0:00:19]} d6 {[%emt 0:03:20]} 7. O-O {[%emt 0:02:21]} O-O {[%emt 0:01:54]} 8. Be3 {[%emt 0:02:44]} Bxe3 {[%emt 0:00:51]} 9. fxe3 {[%emt 0:00:05]} Na5 {[%emt 0:01:46]} 10. Bb3 {[%emt 0:06:36]} Nxb3 {[%emt 0:01:48]} 11. Qxb3 {[%emt 0:00:57]} Rb8 {[%emt 0:01:44]} 12. Qc2 {[%emt 0:03:30]} Re8 {[%emt 0:00:28]} 13. Nbd2 {[%emt 0:00:46]} Qe7 {[%emt 0:02:11]} 14. Rae1 {[%emt 0:04:09]} b6 {[%emt 0:08:22]} 15. Nb3 {[%emt 0:07:43]} d5 {[%emt 0:02:55]} 16. exd5 {[%emt 0:03:34]} Nxd5 {[%emt 0:00:09]} 17. Qf2 {[%emt 0:01:19]} Ba6 {[%emt 0:02:56]} 18. c4 {[%emt 0:29:44]} Nb4 {[%emt 0:01:33]} 19. Qd2 {[%emt 0:05:50]} Qd6 {[%emt 0:03:27]} 20. Nc1 {[%emt 0:05:15]} Rbd8 {[%emt 0:01:08]} 21. Rd1 {[%emt 0:01:39]} e4 {[%emt 0:02:10]} 22. Nd4 {[%emt 0:02:23]} exd3 {[%emt 0:00:48]} 23. a3 {[%emt 0:02:14]} Nc6 {[%emt 0:02:15]} 24. Nf5 {[%emt 0:02:07]} Qd7 {[%emt 0:04:29]} 25. Qc3 {[%emt 0:01:41]} f6 {[%emt 0:02:26]} 26. Nxh6+ {[%emt 0:04:38]} gxh6 {[%emt 0:00:31]} 27. Rxf6 {[%emt 0:00:45]} Re6 {[%emt 0:01:15]} 28. Rxd3 {[%emt 0:04:25]} Qe7 {[%emt 0:00:12]} 29. Rxd8+ {[%emt 0:03:20]} Nxd8 {[%emt 0:00:06]} 30. Rxe6 {[%emt 0:00:31]} Qxe6 {[%emt 0:00:42]} 31. b3 {[%emt 0:00:51]} Bb7 {[%emt 0:00:48]} 32. Ne2 {[%emt 0:00:49]} Qd6 {[%emt 0:01:27]} 33. Qc2 {[%emt 0:01:38]} Kg7 {[%emt 0:00:51]} 34. Nf4 {[%emt 0:00:14]} Nf7 {[%emt 0:03:13]} 35. Qc3+ {[%emt 0:00:47]} Qe5 {[%emt 0:01:03]} 36. Qd3 {[%emt 0:00:57]} Be4 {[%emt 0:01:32]} 37. Qd7 {[%emt 0:00:57]} Bf5 {[%emt 0:01:42]} 38. Qd4 {[%emt 0:00:31]} Qxd4 39. exd4 {[%emt 0:00:01]} Ng5 {[%emt 0:02:03]} 40. c5 {[%emt 0:00:00]} bxc5 {[%emt 0:00:00]} 41. dxc5 {[%emt 0:00:53]} Ne6 {[%emt 0:00:43]} 42. Nxe6+ {[%emt 0:00:47]} Bxe6 {[%emt 0:00:07]} 43. b4 {[%emt 0:00:02]} Kf6 {[%emt 0:00:03]} 44. a4 {[%emt 0:01:10]} Ke5 {[%emt 0:00:27]} 45. a5 {[%emt 0:03:53]} Kd5 {[%emt 0:00:11]} 46. Kf2 {[%emt 0:01:55]} Kc4 {[%emt 0:00:07]} 47. a6 {[%emt 0:00:24]} Kxb4 {[%emt 0:00:06]} 48. c6 {[%emt 0:00:03]} Kc5 {[%emt 0:00:10]} 49. Ke3 {[%emt 0:00:18]} Kxc6 {[%emt 0:00:08]} 50. Kf4 {[%emt 0:00:23]} h5 {[%emt 0:00:12]} 51. Kg5 {[%emt 0:00:37]} Bf7 {[%emt 0:00:20]} 52. g4 {[%emt 0:00:10]} hxg4 {[%emt 0:00:16]} 53. Kxg4 {[%emt 0:00:17]} Kd6 {[%emt 0:00:10]} 54. h4 {[%emt 0:00:29]} c5 {[%emt 0:00:08]} 55. Kf4 {[%emt 0:00:28]} Kc6 {[%emt 0:00:26]} 56. Ke5 {[%emt 0:00:30]} c4 {[%emt 0:00:15]} 57. Kd4 {[%emt 0:00:32]} Kb6 {[%emt 0:00:11]} 58. h5 {[%emt 0:00:28]} Bxh5 {[%emt 0:00:06]} 59. Kxc4 {[%emt 0:00:06]} Kxa6 {[%emt 0:00:17]} 60. Kd4 0-1

[Event "Polish Youth G16 Championship 2023"]
[Site "Jastrzebia Gora"]
[Date "2023.03.15"]
[Round "5.23"]
[White "Lach, Alicja"]
[Black "Idzior, Izabela"]
[Result "1/2-1/2"]
[ECO "C01"]
[WhiteElo "1231"]
[BlackElo "1287"]
[Annotator "NA RC COMBH"]
[PlyCount "75"]
[EventDate "2023.03.11"]
[EventType "swiss"]
[EventCountry "POL"]
[SourceTitle "playchess.com"]
[Source "ChessBase"]
[SourceQuality "1"]
[TimeControl "40/5400+30:1800+30"]

1. e4 e6 2. d4 d5 3. exd5 exd5 4. Nf3 Nc6 5. c4 Nf6 6. Nc3 Bb4 7. Bd3 Bg4 8. Be2 Ne4 9. Bd2 Nxd2 10. Qxd2 dxc4 11. Rd1 Qe7 12. O-O O-O-O 13. Rfe1 Qf6 14. d5 Bxf3 15. Bxf3 Ne5 16. Be4 Bc5 17. Bc2 Bb4 18. Qd4 Nd7 19. Qxc4 Bxc3 20. bxc3 Nb6 21. Qc5 Qd6 22. Qb5 a6 23. Qb3 Qc5 24. Be4 Nc4 25. Rd4 Nd6 26. Bf3 Rhe8 27. Red1 Re7 28. g3 Rde8 29. Kg2 f5 30. h4 g6 31. a4 h6 32. Rh1 h5 33. Rb1 Kb8 34. Rb4 Qa7 35. a5 Kc8 36. Qa2 Qc5 37. Qb3 Qa7 38. Qa2 1/2-1/2

[Event "Polish Youth G16 Championship 2023"]
[Site "Jastrzebia Gora"]
[Date "2023.03.16"]
[Round "6.1"]
[White "Szczotka, Klara"]
[Black "Ziobrowska, Maja"]
[Result "1/2-1/2"]
[ECO "C50"]
[WhiteElo "1739"]
[BlackElo "1758"]
[Annotator "NA RC COMBH"]
[PlyCount "188"]
[EventDate "2023.03.11"]
[EventType "swiss"]
[EventCountry "POL"]
[SourceTitle "playchess.com"]
[Source "ChessBase"]
[SourceQuality "1"]
[TimeControl "40/5400+30:1800+30"]

1. e4 {[%emt 0:00:01]} e5 {[%emt 0:00:07]} 2. Nf3 {[%emt 0:00:02]} Nc6 {[%emt 0:00:05]} 3. Bc4 {[%emt 0:00:03]} Nf6 {[%emt 0:00:39]} 4. d3 {[%emt 0:00:09]} Bc5 {[%emt 0:00:08]} 5. Bg5 {[%emt 0:00:05]} d6 {[%emt 0:00:55]} 6. c3 {[%emt 0:00:38]} h6 {[%emt 0:00:53]} 7. Bh4 {[%emt 0:00:07]} a6 {[%emt 0:01:21]} 8. Nbd2 {[%emt 0:00:57]} Na5 {[%emt 0:06:49]} 9. Bd5 {[%emt 0:02:36]} c6 {[%emt 0:02:34]} 10. Bxf7+ {[%emt 0:01:57]} Kxf7 {[%emt 0:01:53]} 11. b4 {[%emt 0:00:10]} Ba7 {[%emt 0:04:09]} 12. bxa5 {[%emt 0:00:32]} Be6 {[%emt 0:00:27]} 13. Qa4 {[%emt 0:06:29]} Qc7 {[%emt 0:04:29]} 14. O-O {[%emt 0:02:22]} Nd7 {[%emt 0:14:50]} 15. d4 {[%emt 0:04:35]} Rhe8 {[%emt 0:02:21]} 16. Kh1 {[%emt 0:06:31]} Kg8 {[%emt 0:03:34]} 17. Bg3 {[%emt 0:03:37]} Kh8 {[%emt 0:01:08]} 18. dxe5 {[%emt 0:05:54]} dxe5 {[%emt 0:01:47]} 19. Nh4 {[%emt 0:02:32]} Rad8 {[%emt 0:04:13]} 20. Ndf3 {[%emt 0:06:06]} Bf7 {[%emt 0:04:48]} 21. Rad1 {[%emt 0:02:57]} Nc5 {[%emt 0:04:37]} 22. Qc2 {[%emt 0:01:33]} Bb8 {[%emt 0:03:51]} 23. Rxd8 {[%emt 0:10:58]} Qxd8 {[%emt 0:00:09]} 24. Rd1 {[%emt 0:00:23]} Qxa5 {[%emt 0:00:42]} 25. c4 {[%emt 0:02:46]} Qb4 {[%emt 0:04:38]} 26. Rc1 {[%emt 0:03:32]} Bc7 {[%emt 0:10:05]} 27. h3 {[%emt 0:02:05]} a5 {[%emt 0:03:39]} 28. Nf5 {[%emt 0:03:43]} a4 {[%emt 0:08:00]} 29. Qe2 {[%emt 0:01:58]} a3 {[%emt 0:03:12]} 30. N3h4 {[%emt 0:03:01]} Kh7 {[%emt 0:02:18]} 31. Qe3 {[%emt 0:03:47]} Na4 {[%emt 0:03:36]} 32. Rd1 {[%emt 0:06:57]} Qxc4 {[%emt 0:03:24]} 33. Qxa3 {[%emt 0:04:46]} Be6 {[%emt 0:00:51]} 34. Qf3 {[%emt 0:01:35]} g6 {[%emt 0:00:19]} 35. Ne3 {[%emt 0:00:15]} Qxa2 {[%emt 0:00:12]} 36. Qf6 {[%emt 0:00:52]} Rg8 {[%emt 0:00:13]} 37. Bxe5 {[%emt 0:01:36]} Bxe5 {[%emt 0:00:08]} 38. Qxe5 {[%emt 0:00:02]} Rg7 {[%emt 0:00:38]} 39. Qf6 {[%emt 0:04:45]} Nc5 {[%emt 0:01:05]} 40. Qe5 {[%emt 0:00:00]} Qxf2 {[%emt 0:00:00]} 41. Qxc5 {[%emt 0:09:58]} Qxh4 {[%emt 0:01:14]} 42. e5 {[%emt 0:02:06]} Qe4 {[%emt 0:06:18]} 43. Kg1 {[%emt 0:02:38]} Rf7 {[%emt 0:04:39]} 44. Rd6 {[%emt 0:01:35]} Bd5 {[%emt 0:01:44]} 45. Rf6 {[%emt 0:05:08]} Rd7 {[%emt 0:09:55]} 46. Qc3 {[%emt 0:05:04]} Re7 {[%emt 0:05:18]} 47. Nxd5 {[%emt 0:02:38]} cxd5 {[%emt 0:01:53]} 48. e6 {[%emt 0:00:51]} Rg7 {[%emt 0:00:47]} 49. Kf2 {[%emt 0:05:48]} d4 {[%emt 0:01:00]} 50. Qf3 {[%emt 0:00:33]} Qe5 {[%emt 0:00:51]} 51. Qf4 {[%emt 0:00:25]} Qd5 {[%emt 0:01:55]} 52. Qf3 {[%emt 0:01:16]} Qxf3+ {[%emt 0:00:35]} 53. Rxf3 {[%emt 0:02:22]} Re7 {[%emt 0:00:25]} 54. Rb3 {[%emt 0:01:09]} Kg7 {[%emt 0:00:16]} 55. Kf3 {[%emt 0:00:44]} Kf6 {[%emt 0:00:15]} 56. Ke4 {[%emt 0:00:35]} Rxe6+ {[%emt 0:00:38]} 57. Kxd4 {[%emt 0:00:01]} b6 {[%emt 0:00:17]} 58. Rb5 {[%emt 0:00:57]} g5 {[%emt 0:00:46]} 59. g4 {[%emt 0:01:32]} Rd6+ {[%emt 0:00:38]} 60. Ke4 {[%emt 0:00:18]} Ke6 {[%emt 0:00:41]} 61. Rb3 {[%emt 0:00:58]} Rc6 {[%emt 0:00:38]} 62. Rb4 {[%emt 0:00:42]} Kd6 {[%emt 0:00:38]} 63. Kd4 {[%emt 0:00:54]} Kc7 {[%emt 0:00:19]} 64. Rb5 {[%emt 0:00:20]} Rf6 {[%emt 0:00:24]} 65. Rb3 {[%emt 0:00:20]} Kc6 {[%emt 0:00:31]} 66. Ke5 {[%emt 0:00:27]} Rf4 {[%emt 0:00:31]} 67. Rc3+ {[%emt 0:00:40]} Kb5 {[%emt 0:00:16]} 68. Kd5 {[%emt 0:00:10]} Kb4 {[%emt 0:00:27]} 69. Rc6 {[%emt 0:00:42]} b5 {[%emt 0:00:19]} 70. Rxh6 {[%emt 0:00:33]} Ka3 {[%emt 0:00:36]} 71. Kc5 {[%emt 0:00:55]} b4 {[%emt 0:00:10]} 72. Ra6+ {[%emt 0:00:26]} Kb2 {[%emt 0:00:35]} 73. Ra4 {[%emt 0:00:39]} b3 {[%emt 0:01:31]} 74. Rxf4 {[%emt 0:00:19]} gxf4 {[%emt 0:00:05]} 75. g5 {[%emt 0:00:01]} f3 {[%emt 0:00:22]} 76. g6 {[%emt 0:00:01]} f2 {[%emt 0:00:14]} 77. g7 {[%emt 0:00:01]} f1=Q {[%emt 0:00:19]} 78. g8=Q {[%emt 0:00:02]} Qxh3 {[%emt 0:00:18]} 79. Kb4 {[%emt 0:00:42]} Qc3+ {[%emt 0:00:23]} 80. Ka4 {[%emt 0:00:39]} Qd4+ {[%emt 0:01:46]} 81. Kb5 {[%emt 0:00:14]} Kc2 {[%emt 0:00:32]} 82. Qg2+ {[%emt 0:00:35]} Qd2 {[%emt 0:00:25]} 83. Qc6+ {[%emt 0:00:31]} Kb1 {[%emt 0:00:35]} 84. Qh1+ {[%emt 0:01:13]} Qc1 {[%emt 0:00:04]} 85. Qe4+ {[%emt 0:00:20]} Ka2 {[%emt 0:00:24]} 86. Qa4+ {[%emt 0:00:29]} Qa3 {[%emt 0:00:16]} 87. Qc4 {[%emt 0:00:12]} Qd6 {[%emt 0:01:22]} 88. Ka4 {[%emt 0:00:34]} Qd7+ {[%emt 0:00:21]} 89. Kb4 {[%emt 0:00:21]} Qd2+ {[%emt 0:00:15]} 90. Ka4 {[%emt 0:00:33]} Qc2 {[%emt 0:00:39]} 91. Qe6 {[%emt 0:00:42]} Kb2 {[%emt 0:00:33]} 92. Qe5+ {[%emt 0:00:33]} Kb1 {[%emt 0:00:38]} 93. Qe1+ {[%emt 0:00:12]} Ka2 {[%emt 0:00:29]} 94. Qe6 {[%emt 0:00:08]} Qc3 1/2-1/2

[Event "Polish Youth G16 Championship 2023"]
[Site "Jastrzebia Gora"]
[Date "2023.03.16"]
[Round "6.2"]
[White "Pawicka, Magdalena"]
[Black "Bar, Klaudia"]
[Result "1/2-1/2"]
[ECO "B32"]
[WhiteElo "1805"]
[BlackElo "1731"]
[Annotator "NA RC COMBH"]
[PlyCount "88"]
[EventDate "2023.03.11"]
[EventType "swiss"]
[EventCountry "POL"]
[SourceTitle "playchess.com"]
[Source "ChessBase"]
[SourceQuality "1"]
[TimeControl "40/5400+30:1800+30"]

1. e4 {[%emt 0:00:06]} c5 {[%emt 0:00:03]} 2. Nf3 {[%emt 0:00:10]} Nc6 {[%emt 0:00:05]} 3. d4 {[%emt 0:00:39]} cxd4 {[%emt 0:00:08]} 4. Nxd4 {[%emt 0:00:10]} e5 {[%emt 0:00:06]} 5. Nb5 {[%emt 0:00:13]} d6 {[%emt 0:00:05]} 6. c4 {[%emt 0:00:42]} Be6 {[%emt 0:00:09]} 7. N1c3 {[%emt 0:00:35]} a6 {[%emt 0:00:06]} 8. Na3 {[%emt 0:00:39]} g6 {[%emt 0:00:20] is now more promising than 8...Be7.} 9. Nc2 {[%emt 0:01:09]} Bg7 {[%emt 0:01:01]} 10. Be3 {[%emt 0:01:56]} Nge7 {[%emt 0:00:14]} 11. Qd2 {[%emt 0:02:22]} f5 {[%emt 0:04:14]} 12. f3 {[%emt 0:01:19]} Qc7 {[%emt 0:08:05]} 13. Nd5 {[%emt 0:10:24]} Bxd5 {[%emt 0:04:03]} 14. cxd5 {[%emt 0:01:00] [#]} Nd8 $146 {[%emt 0:01:33]} ({Predecessor:} 14... Nb8 15. Rc1 Qd8 16. Qb4 fxe4 17. fxe4 O-O 18. Be2 a5 19. Qa3 Nc8 20. Bf3 Nd7 {½-½ Valencia Quinchia,I (1473)-Ospina Betancur,S (1716) Medellin Raza Cup 2022 (5)}) 15. Bd3 {[%emt 0:07:42]} O-O {[%emt 0:01:24]} 16. O-O {[%emt 0:02:37]} f4 {[%emt 0:04:52]} 17. Bf2 {[%emt 0:00:09]} g5 {[%emt 0:00:45]} 18. b4 {[%emt 0:09:12]} h5 {[%emt 0:01:10]} 19. a4 {[%emt 0:02:54]} g4 {[%emt 0:01:19]} 20. Be2 {[%emt 0:01:45]} Qd7 {[%emt 0:06:10]} 21. Qd1 {[%emt 0:05:04]} (21. fxg4 $18 {has better winning chances.} hxg4 22. Qd1) 21... g3 {[%emt 0:02:16]} 22. hxg3 {[%emt 0:00:35]} fxg3 {[%emt 0:00:06]} 23. Bxg3 {[%emt 0:01:28]} Ng6 {[%emt 0:00:26]} 24. Ne3 {[%emt 0:04:17]} Qe7 {[%emt 0:00:51]} 25. Nf5 {[%emt 0:10:46]} Qg5 {[%emt 0:01:55]} 26. Qc1 {[%emt 0:03:03]} Rxf5 {[%emt 0:03:45]} 27. exf5 {[%emt 0:00:12]} Nf4 {[%emt 0:00:03]} 28. Bxf4 {[%emt 0:14:59]} exf4 {[%emt 0:00:17]} 29. Qc4 {[%emt 0:01:11]} Bxa1 {[%emt 0:01:49]} 30. Rxa1 {[%emt 0:00:05]} Qxf5 $16 {[%emt 0:01:13]} (30... Nf7 $1 $11 {keeps the balance.}) 31. Qe4 {[%emt 0:01:15]} Qe5 {[%emt 0:01:35]} (31... Qxe4 $14 32. fxe4 Nf7) 32. Qxe5 {[%emt 0:03:33]} (32. Rc1 $18) 32... dxe5 {[%emt 0:00:06]} 33. Rc1 {[%emt 0:00:12]} Kf7 {[%emt 0:02:49]} 34. Rc7+ {[%emt 0:00:55]} Kf6 {[%emt 0:00:58]} 35. Bc4 {[%emt 0:07:24]} Rb8 {[%emt 0:02:29]} 36. Rh7 {[%emt 0:02:05]} Rc8 {[%emt 0:02:14]} 37. Bd3 {[%emt 0:00:15]} Rc1+ {[%emt 0:09:56]} 38. Kf2 {[%emt 0:01:33]} Rd1 {[%emt 0:00:22]} 39. Be4 {[%emt 0:00:35]} ({White should play} 39. Ke2 $16 Rg1 40. Rh6+ (40. Rxh5 Rxg2+ 41. Kf1 Rd2 $11) 40... Kg7 41. Rg6+ (41. Rxh5 Rxg2+ 42. Kf1 Rd2 $11) 41... Kf8 42. Bf5) 39... Rd2+ {[%emt 0:01:04]} 40. Kf1 {[%emt 0:00:00]} Nf7 {[%emt 0:00:00]} 41. Rxh5 {[%emt 0:03:27]} b5 {[%emt 0:03:09]} 42. axb5 {[%emt 0:02:43]} axb5 {[%emt 0:00:24]} 43. Rf5+ {[%emt 0:04:59]} Ke7 {[%emt 0:00:25]} 44. d6+ {[%emt 0:01:17]} Rxd6 {[%emt 0:00:37]} 1/2-1/2